bitfinex-derivatives/quotes_ETHF0:USTF0_20251107
["timestamp","ask_amount","ask_price","bid_price","bid_amount"]
[1762528015361,0.00459116,3267.7,3267.3,3.2078]
[1762528015566,0.00459116,3267.7,3267.6,0.49615]
[1762528016255,0.00459116,3267.7,3267.3,3.2078]
[1762528016457,0.00459116,3267.7,3267.6,0.49615]
[1762528018158,0.00269722,3268.5,3268.4,0.49602]
[1762528018352,0.00269722,3268.5,3268.4,3.70382]
[1762528018556,0.49870722,3268.5,3268.4,3.2078]
[1762528018761,0.49606,3268.2,3267.9,3.2078]
[1762528018959,0.49607,3268.1,3267.9,3.2078]
[1762528019157,0.00459116,3268.3,3267.9,3.2078]
[1762528019358,0.49606,3268.2,3267.9,3.2078]
[1762528019554,0.50063116,3268.3,3268.0,0.49608]
[1762528019757,0.50063116,3268.3,3267.9,3.2078]
[1762528019758,0.00459116,3268.3,3267.9,3.7039]
[1762528019957,0.00459116,3268.3,3268.0,0.49609]
[1762528020159,0.00459116,3268.3,3267.9,3.2078]
[1762528020465,0.00459116,3268.3,3267.7,0.00459116]
[1762528020662,0.00459116,3268.3,3268.2,0.49606]
[1762528020963,3.2078,3269.0,3267.9,3.4449]
[1762528021162,3.2078,3269.0,3267.7,0.00459116]
[1762528021163,0.49605,3268.3,3268.0,3.2078]
[1762528021361,0.49595,3268.9,3268.0,3.2078]
[1762528021666,0.49605,3268.3,3268.0,3.2078]
[1762528021863,0.00275862,3268.3,3268.2,0.49606]
[1762528022060,0.00275862,3268.3,3268.0,3.2078]
[1762528022261,0.00275862,3268.3,3267.7,0.00459116]
[1762528022262,0.4961,3268.0,3267.7,0.00459116]
[1762528022460,0.00275862,3268.3,3267.7,0.00459116]
[1762528022658,0.00275862,3268.3,3268.1,3.2078]
[1762528022859,0.00275862,3268.3,3268.2,0.49606]
[1762528023360,0.00275862,3268.3,3268.1,3.2078]
[1762528023361,0.49880862,3268.3,3268.1,3.2078]
[1762528023667,0.00275862,3268.3,3268.1,3.2078]
[1762528023864,0.49606,3268.2,3268.1,3.2078]
[1762528024164,0.49612,3267.8,3267.7,0.00459116]
[1762528024363,3.70392,3267.8,3267.7,0.00459116]
[1762528024568,0.4962,3267.3,3267.2,3.2078]
[1762528025165,3.2078,3267.8,3266.9,0.00347323]
[1762528025166,0.49624,3267.0,3266.9,0.00347323]
[1762528025369,0.3731,3267.0,3266.9,0.00347323]
[1762528026069,3.5809,3267.0,3266.9,0.00347323]
[1762528026463,0.49622,3267.2,3266.9,0.00347323]
[1762528026664,3.5809,3267.0,3266.9,0.00347323]
[1762528026964,0.49648,3265.5,3265.0,3.2078]
[1762528027168,0.3731,3265.2,3265.0,3.2078]
[1762528027465,0.49658,3264.8,3264.6,3.2078]
[1762528027665,3.2078,3265.0,3264.2,3.2078]
[1762528027865,0.49658,3264.8,3264.2,3.21077639]
[1762528028173,0.00459116,3264.9,3264.6,3.2078]
[1762528030965,0.49675,3263.7,3263.0,3.2078]
[1762528031273,0.49658,3264.8,3263.5,3.2078]
[1762528031569,0.49661,3264.6,3264.2,3.2078]
[1762528031768,3.2078,3264.6,3263.8,3.2078]
[1762528032469,3.70442,3264.6,3263.8,3.70452]
[1762528032673,0.00320999,3265.0,3264.3,3.2078]
[1762528032869,0.00320999,3265.0,3264.7,1.2078]
[1762528033068,0.00320999,3265.0,3264.3,3.2078]
[1762528033267,0.50116116,3264.9,3264.3,3.2078]
[1762528033472,0.50116116,3264.9,3263.0,1.26608011]
[1762528033473,0.49658,3264.8,3263.9,3.2078]
[1762528033670,0.00459116,3264.9,3263.9,3.2078]
[1762528033970,0.00459116,3264.9,3264.4,3.2078]
[1762528034166,0.00459116,3264.9,3264.7,0.49658]
[1762528034370,0.50116116,3264.9,3264.4,0.49663]
[1762528034574,0.00459116,3264.9,3264.4,3.2078]
[1762528034776,0.00459116,3264.9,3264.8,3.2078]
[1762528034978,0.00459116,3264.9,3264.4,3.2078]
[1762528035170,0.4966,3264.7,3263.9,3.2078]
[1762528035373,0.49669,3264.1,3263.9,3.2078]
[1762528035668,0.00459116,3264.9,3263.0,0.203]
[1762528035669,3.2078,3264.3,3263.0,0.203]
[1762528035870,3.2078,3264.3,3263.5,3.2078]
[1762528036074,3.2078,3263.9,3263.0,0.203]
[1762528036267,0.49675,3263.7,3262.9,3.21153124]
[1762528036472,0.49675,3263.7,3263.3,0.4968]
[1762528036778,3.2078,3263.9,3263.4,0.49678]
[1762528036978,0.00459116,3264.9,3263.7,3.2078]
[1762528037274,0.00459116,3264.9,3264.7,3.70438]
[1762528037678,0.00459116,3264.9,3264.7,0.49658]
[1762528037971,0.00459116,3264.9,3264.3,3.2078]
[1762528038980,0.00459116,3264.9,3264.7,3.70439]
[1762528039471,3.5809,3266.1,3265.2,0.4965]
[1762528039670,3.2078,3265.7,3264.7,3.2078]
[1762528039972,3.2078,3265.3,3264.7,3.2078]
[1762528040179,3.2078,3265.3,3264.3,3.2078]
[1762528040478,0.00459116,3265.1,3264.5,0.00459116]
[1762528040773,0.49655,3265.0,3264.5,0.00459116]
[1762528040986,0.49659,3264.7,3264.5,0.50120116]
[1762528041275,0.49658,3264.8,3264.6,0.4966]
[1762528041474,3.2078,3264.9,3264.5,0.00459116]
[1762528041676,0.49659,3264.7,3264.5,0.00459116]
[1762528042072,0.49667,3264.2,3263.6,3.2078]
[1762528042273,3.2078,3264.6,3263.9,0.49671]
[1762528042574,3.2078,3264.6,3264.2,0.49665]
[1762528042773,3.2078,3264.6,3264.0,3.2078]
[1762528042973,3.2078,3264.6,3264.4,0.49663]
[1762528043176,3.2078,3264.6,3264.5,0.49662]
[1762528043775,3.21239116,3265.1,3264.5,11.2078]
[1762528043972,0.49654,3265.0,3264.6,0.4966]
[1762528044477,3.21239116,3265.1,3264.5,3.2078]
[1762528044976,3.21239116,3265.1,3265.0,0.49654]
[1762528045179,0.00459116,3265.1,3265.0,0.49654]
[1762528045375,3.2078,3266.3,3264.9,3.2078]
[1762528045376,3.2078,3266.3,3265.7,0.49644]
[1762528045578,3.2078,3266.7,3266.3,0.49634]
[1762528045873,3.2078,3266.7,3266.4,0.49633]
[1762528046071,3.2078,3266.7,3266.0,3.2078]
[1762528046072,0.3731,3267.0,3266.0,3.2078]
[1762528046279,0.00459116,3266.8,3266.7,0.49629]
[1762528046474,0.00459116,3266.8,3266.7,3.70729632]
[1762528046877,3.2078,3267.5,3266.7,3.21100632]
[1762528047072,3.2078,3267.5,3266.7,0.00320632]
[1762528047586,0.49626,3266.9,3266.7,0.00320632]
[1762528048083,0.00226824,3266.9,3266.8,0.49627]
[1762528048475,0.00226824,3266.9,3266.8,8.49627]
[1762528048773,0.00226824,3266.9,3266.8,8.0]
[1762528048971,3.2078,3268.5,3266.9,14.1216]
[1762528049276,3.2078,3268.9,3267.9,3.2078]
[1762528049479,3.2078,3268.3,3267.5,3.2078]
[1762528049676,3.2078,3268.7,3267.5,3.2078]
[1762528049986,0.49602,3268.5,3268.3,3.2078]
[1762528050177,0.00459116,3268.4,3267.9,3.2078]
[1762528050375,3.2078,3268.1,3267.8,0.00459116]
[1762528050679,3.2078,3268.1,3267.9,0.4961]
[1762528051075,0.49609,3268.0,3267.8,0.00459116]
[1762528051269,0.00459116,3268.4,3267.8,3.21239116]
[1762528051473,0.00459116,3268.4,3267.8,3.70850116]
[1762528051774,0.49608,3268.1,3267.8,0.00459116]
[1762528052178,0.00459116,3268.4,3267.8,3.21239116]
[1762528052579,0.49608,3268.1,3267.8,0.00459116]
[1762528052775,0.49609,3268.0,3267.8,0.00459116]
[1762528053474,3.2078,3268.1,3267.8,0.00459116]
[1762528053679,0.00459116,3268.4,3267.8,0.50069116]
[1762528053875,0.49605,3268.3,3267.9,0.4961]
[1762528054075,0.00459116,3268.4,3268.3,0.49604]
[1762528054384,0.00459116,3268.4,3267.8,3.21239116]
[1762528054684,0.00459116,3268.4,3268.2,0.49605]
[1762528055182,0.00459116,3268.4,3267.8,3.21239116]
[1762528055679,0.4961,3268.0,3267.8,3.21239116]
[1762528055881,0.4961,3267.9,3267.8,0.00459116]
[1762528056182,4.0624,3267.9,3267.8,0.00459116]
[1762528056386,4.0624,3267.9,3266.7,0.00320632]
[1762528056387,3.5663,3267.9,3266.7,0.00320632]
[1762528056688,0.49626,3266.9,3266.7,0.00320632]
[1762528057288,3.5663,3267.0,3266.7,0.00320632]
[1762528057490,0.49623,3267.1,3266.9,3.2078]
[1762528057682,3.2078,3267.5,3266.9,0.49625]
[1762528057981,0.3585,3267.9,3267.2,3.2078]
[1762528058182,0.49604,3268.3,3267.8,3.2078]
[1762528058490,0.00459116,3268.4,3268.0,0.49607]
[1762528058491,0.49607,3268.1,3268.0,0.49607]
[1762528058783,0.00459116,3268.4,3267.8,3.2078]
[1762528059282,0.49607,3268.2,3268.0,0.49608]
[1762528059586,0.49607,3268.2,3267.8,3.2078]
[1762528059587,0.00459116,3268.4,3267.8,3.2078]
[1762528059783,0.00459116,3268.4,3268.0,0.49608]
[1762528060185,0.49606,3268.2,3268.1,0.49607]
[1762528060380,0.00459116,3268.4,3268.1,0.49607]
[1762528060586,0.49604,3268.3,3268.0,0.49607]
[1762528060787,0.00459116,3268.4,3268.1,0.49606]
[1762528061088,0.00459116,3268.4,3268.2,0.49605]
[1762528061385,0.00459116,3268.4,3268.2,3.2078]
[1762528061584,0.00459116,3268.4,3268.3,0.49604]
[1762528062184,0.3731,3269.7,3268.2,3.2078]
[1762528062185,3.5809,3269.7,3268.2,3.2078]
[1762528062387,0.49598,3268.7,3268.6,3.2078]
[1762528062585,3.5749,3268.8,3267.8,3.2078]
[1762528062782,0.49603,3268.4,3268.1,0.49607]
[1762528062983,0.496,3268.6,3268.3,0.49604]
[1762528063185,0.49609,3268.0,3267.9,0.00459116]
[1762528063681,0.00386749,3268.6,3267.9,0.00459116]
[1762528063990,0.00386749,3268.6,3268.5,0.49601]
[1762528064688,0.00386749,3268.6,3268.2,3.2078]
[1762528064881,0.49601,3268.5,3268.4,0.49603]
[1762528065086,0.00386749,3268.6,3268.2,3.2078]
[1762528065287,0.49603,3268.4,3268.3,0.49604]
[1762528065486,0.00386749,3268.6,3268.2,3.2078]
[1762528065682,0.00386749,3268.6,3268.5,0.49601]
[1762528065890,0.49601,3268.5,3268.3,0.49604]
[1762528066086,0.49609,3268.0,3267.9,0.00459116]
[1762528066284,3.21166749,3268.6,3267.9,0.00459116]
[1762528066482,0.49601,3268.5,3268.2,0.49604]
[1762528066783,0.49609,3268.0,3267.9,0.00459116]
[1762528067384,0.49609,3268.0,3267.9,0.50069116]
[1762528067685,3.21166749,3268.6,3267.9,0.00459116]
[1762528067889,3.21166749,3268.6,3268.1,0.49606]
[1762528068088,3.21166749,3268.6,3268.3,0.49604]
[1762528068089,0.49605,3268.4,3268.3,0.49604]
[1762528068291,0.49607,3268.3,3268.2,0.49606]
[1762528068778,0.00386749,3268.6,3268.5,0.49601]
[1762528069185,0.49604,3268.3,3268.2,3.70384]
[1762528069789,0.49604,3268.3,3268.2,3.2078]
[1762528070087,3.21166749,3268.6,3267.9,0.00459116]
[1762528070284,0.49609,3268.0,3267.9,0.00459116]
[1762528070589,0.86319,3268.0,3267.9,0.00459116]
[1762528071180,3.2078,3268.2,3267.9,0.00459116]
[1762528071684,0.49609,3268.0,3267.9,0.00459116]
[1762528072584,0.86319,3268.0,3267.9,0.00459116]
[1762528072787,0.49622,3267.1,3267.0,3.2078]
[1762528072989,3.2078,3267.8,3267.0,3.2078]
[1762528073185,0.49622,3267.1,3267.0,3.2078]
[1762528073688,0.3671,3268.0,3266.7,0.00779748]
[1762528073689,0.49627,3266.8,3266.7,0.00779748]
[1762528074791,0.49634,3266.3,3266.2,3.2078]
[1762528075099,0.49634,3266.3,3265.1,1.59447864]
[1762528075100,0.3671,3266.4,3265.1,4.00345401]
[1762528075291,0.49644,3265.7,3265.5,3.2078]
[1762528075484,3.2078,3266.0,3265.0,0.79565401]
[1762528075485,3.2078,3266.0,3265.1,3.70433]
[1762528075690,0.4965,3265.3,3265.2,0.00459116]
[1762528075993,0.00308345,3266.0,3265.7,0.49643]
[1762528076187,0.00308345,3266.0,3265.3,3.2078]
[1762528076396,0.00308345,3266.0,3265.8,0.49642]
[1762528076995,0.00308345,3266.0,3265.3,3.2078]
[1762528077400,0.49645,3265.6,3265.3,3.2078]
[1762528077700,0.00308345,3266.0,3265.3,3.2078]
[1762528077701,0.49648,3265.4,3265.3,3.2078]
[1762528077887,0.49646,3265.6,3265.4,0.49648]
[1762528078091,0.49642,3265.8,3265.5,0.49646]
[1762528078298,3.21088345,3266.0,3265.3,3.2078]
[1762528078597,0.00308345,3266.0,3265.8,0.49641]
[1762528078896,3.2078,3266.9,3265.7,3.2078]
[1762528079095,3.2078,3266.9,3266.2,3.2078]
[1762528079298,0.00459116,3267.1,3266.9,0.49625]
[1762528079886,0.00785422,3267.1,3266.9,0.49625]
[1762528080096,0.00785422,3267.1,3266.6,3.2078]
[1762528080296,0.49627,3266.8,3266.6,3.2078]
[1762528080496,0.00785422,3267.1,3266.1,3.2078]
[1762528080807,0.49628,3266.7,3266.6,3.2078]
[1762528081405,0.3469,3266.4,3265.7,0.49643]
[1762528081604,0.49638,3266.1,3265.6,0.49645]
[1762528081794,3.2078,3266.8,3265.9,3.2078]
[1762528081998,3.2078,3266.8,3266.0,0.49638]
[1762528082194,3.2078,3266.8,3266.1,0.49637]
[1762528082395,0.49639,3266.0,3265.9,3.2078]
[1762528082800,3.2078,3266.0,3265.2,0.00459116]
[1762528083000,0.3469,3266.4,3265.6,3.2078]
[1762528083202,0.49634,3266.3,3265.9,0.49639]
[1762528083508,3.2078,3266.9,3265.7,0.49643]
[1762528083701,0.00785422,3267.1,3266.6,3.2078]
[1762528084005,0.00785422,3267.1,3267.0,3.2078]
[1762528084205,0.00785422,3267.1,3266.6,3.2078]
[1762528084206,0.49628,3266.7,3266.6,3.2078]
[1762528084404,3.2078,3266.9,3266.0,3.2078]
[1762528084597,0.00785422,3267.1,3266.5,0.49631]
[1762528084801,0.4963,3266.6,3266.4,3.2078]
[1762528085004,0.3469,3266.4,3265.8,3.2078]
[1762528085207,0.49642,3265.8,3265.5,0.49645]
[1762528085399,0.49644,3265.7,3265.5,0.49645]
[1762528085604,3.2078,3266.1,3265.4,3.2078]
[1762528085800,0.3469,3266.4,3266.0,0.49639]
[1762528086003,0.49637,3266.1,3265.9,0.4964]
[1762528086606,0.3469,3266.4,3265.8,3.2078]
[1762528086911,3.21565422,3267.1,3266.3,3.2078]
[1762528087204,3.21565422,3267.1,3265.3,0.80182951]
[1762528087205,3.2078,3266.7,3265.9,3.2078]
[1762528087504,3.2078,3266.7,3265.9,3.7042]
[1762528087706,3.2078,3266.7,3265.9,3.2078]
[1762528087903,3.2078,3266.7,3266.1,0.49637]
[1762528088202,3.2078,3266.7,3265.2,0.00459116]
[1762528088203,0.00785422,3267.1,3266.3,3.2078]
[1762528088404,0.00785422,3267.1,3267.0,3.2078]
[1762528088702,0.49627,3266.9,3266.6,3.2078]
[1762528088902,0.00785422,3267.1,3266.6,3.2078]
[1762528088903,0.49628,3266.7,3266.6,3.2078]
[1762528089105,0.49636,3266.2,3265.9,3.2078]
[1762528089303,3.2078,3266.8,3265.9,3.2078]
[1762528090212,3.2078,3266.8,3266.1,0.49637]
[1762528090505,3.2078,3266.8,3265.9,3.2078]
[1762528090908,0.00785422,3267.1,3267.0,0.49624]
[1762528091298,0.49624,3267.0,3266.8,3.2078]
[1762528091499,0.49624,3267.0,3266.7,0.49628]
[1762528091698,0.49626,3266.9,3266.7,0.49628]
[1762528091909,0.00785422,3267.1,3267.0,0.49624]
[1762528092107,0.00785422,3267.1,3266.8,3.2078]
[1762528092409,0.49624,3267.0,3266.8,0.49627]
[1762528092611,0.00785422,3267.1,3267.0,0.49624]
[1762528092804,0.49624,3267.0,3266.7,0.49627]
[1762528093008,0.49624,3267.0,3266.8,0.49627]
[1762528093307,0.00785422,3267.1,3267.0,0.49624]
[1762528093507,0.00785422,3267.1,3266.4,3.2078]
[1762528093712,0.49626,3266.9,3266.7,0.49627]
[1762528094016,0.00785422,3267.1,3266.8,3.2078]
[1762528094310,0.49625,3266.9,3266.8,3.70407]
[1762528094611,0.49625,3266.9,3266.1,0.80182951]
[1762528094612,0.00785422,3267.1,3266.4,3.2078]
[1762528095012,0.49628,3266.7,3266.6,0.4963]
[1762528095213,0.49636,3266.3,3265.9,4.00962951]
[1762528095413,0.49631,3266.5,3265.9,3.2078]
[1762528095715,0.00785422,3267.1,3266.3,0.49634]
[1762528095912,0.49636,3266.2,3266.1,0.49637]
[1762528096116,0.00785422,3267.1,3266.3,0.49634]
[1762528096415,0.00785422,3267.1,3266.3,3.2078]
[1762528096614,0.00785422,3267.1,3267.0,0.49624]
[1762528096810,0.00785422,3267.1,3266.7,3.70408]
[1762528097006,0.49627,3266.8,3266.7,3.2078]
[1762528097314,0.49625,3267.0,3266.7,3.2078]
[1762528097519,0.3671,3268.0,3266.8,8.0]
[1762528097812,0.3671,3268.8,3268.7,0.49598]
[1762528098025,3.2078,3269.4,3268.6,3.2078]
[1762528098612,0.00459116,3269.3,3268.9,0.49594]
[1762528098812,0.00459116,3269.3,3268.7,0.00459116]
[1762528099019,0.49595,3268.9,3268.7,0.00459116]
[1762528099405,0.00459116,3269.3,3268.7,0.00459116]
[1762528099615,0.49592,3269.1,3268.8,0.49596]
[1762528099920,0.49595,3268.9,3268.7,0.00459116]
[1762528100213,0.00459116,3269.3,3268.7,0.00459116]
[1762528100415,3.70375,3268.9,3268.7,0.00459116]
[1762528100627,0.3469,3268.8,3268.7,0.00459116]
[1762528101921,3.5547,3268.8,3268.7,0.00459116]
[1762528102315,3.2078,3268.8,3268.7,0.00459116]
[1762528102619,3.5547,3268.8,3268.7,0.00459116]
[1762528102817,0.00459116,3269.3,3268.7,0.00459116]
[1762528103014,3.06186393,3271.2,3268.7,0.00459116]
[1762528103015,0.3469,3274.2,3268.8,6.1184]
[1762528103210,1.6334618,3274.5,3271.0,0.80182951]
[1762528103418,3.06933633,3276.0,3271.2,3.063]
[1762528103620,0.3469,3276.9,3274.8,0.80182951]
[1762528103813,0.3469,3275.8,3275.0,0.80182951]
[1762528104114,0.00458379,3275.7,3275.6,2.11956035]
[1762528104325,0.84181,3275.8,3275.6,1.836e-05]
[1762528104614,0.3469,3275.8,3275.1,0.00458379]
[1762528104814,0.84181,3275.8,3275.1,0.00458379]
[1762528105014,0.49494,3275.6,3275.1,0.00458379]
[1762528105212,8.34979684,3275.8,3275.1,0.00458379]
[1762528105419,0.49497,3275.4,3275.1,0.00458379]
[1762528105618,0.495,3275.2,3275.1,0.00458379]
[1762528105812,0.00458379,3275.7,3275.1,3.21238379]
[1762528106018,0.00458379,3275.7,3275.6,3.2078]
[1762528106920,0.49492,3275.7,3275.2,3.2078]
[1762528107115,0.3469,3275.8,3275.6,5.81728319]
[1762528107321,0.3469,3276.9,3275.6,3.2078]
[1762528107522,0.49482,3276.4,3276.3,3.2078]
[1762528107713,0.00288194,3276.4,3276.3,3.2078]
[1762528108320,0.49494,3275.6,3275.5,3.72045017]
[1762528108621,0.495,3275.2,3275.1,0.00458379]
[1762528108820,3.2078,3275.3,3274.2,3.2078]
[1762528109021,0.49509,3274.6,3274.2,3.2078]
[1762528109229,3.2078,3275.3,3274.4,0.4951]
[1762528109522,0.495,3275.2,3275.1,2.59473474]
[1762528109718,0.49503,3275.0,3274.9,2.59473474]
[1762528109922,0.49503,3275.0,3274.9,0.00260529]
[1762528110124,1.79317,3274.7,3274.6,0.00458379]
[1762528110329,1.79317,3274.7,3273.6,3.2078]
[1762528110330,0.49522,3273.8,3273.6,3.2078]
[1762528110624,0.49537,3272.8,3272.6,3.2078]
[1762528110921,3.2078,3273.1,3272.2,3.2078]
[1762528111125,0.49539,3272.7,3272.2,3.2078]
[1762528111424,3.2078,3273.1,3272.6,3.2078]
[1762528111425,0.00458379,3272.8,3272.6,3.2078]
[1762528111821,0.00458379,3272.8,3272.6,3.70318]
[1762528112514,0.00458379,3272.8,3272.6,3.2078]
[1762528112714,0.49995379,3272.8,3272.6,3.2078]
[1762528112918,0.49543,3272.4,3272.2,0.00280373]
[1762528113624,8.0,3272.3,3272.1,7.52e-06]
[1762528113828,0.49555,3271.6,3271.0,0.49563]
[1762528114125,0.49553,3271.7,3271.5,3.2078]
[1762528114323,0.4956,3271.2,3271.1,3.2078]
[1762528114527,0.49564,3271.0,3270.7,3.2078]
[1762528114824,1.2981,3272.5,3270.7,3.21135744]
[1762528114825,0.49563,3271.1,3270.7,3.21135744]
[1762528115123,0.49566,3270.9,3270.7,3.21135744]
[1762528116127,8.0,3270.8,3270.7,0.00355744]
[1762528116323,0.4958,3269.9,3269.8,3.2078]
[1762528116523,0.49584,3269.7,3269.6,3.2078]
[1762528116726,3.2078,3270.5,3269.6,4.30958334]
[1762528116928,0.49581,3269.9,3269.7,1.10178334]
[1762528117121,0.49581,3269.9,3269.8,1.10178334]
[1762528117323,0.49964498,3269.9,3269.8,1.10459048]
[1762528117516,8.49964498,3269.9,3269.8,1.10459048]
[1762528117832,8.00383498,3269.9,3269.8,1.10459048]
[1762528118129,0.00383498,3269.9,3269.8,1.10459048]
[1762528119024,0.00458379,3270.2,3270.0,0.49577]
[1762528119232,3.2078,3271.2,3270.1,4.30958334]
[1762528119526,0.49567,3270.8,3270.7,2.61129286]
[1762528119727,3.70347,3270.8,3270.7,1.10178334]
[1762528119928,8.40042751,3270.8,3270.7,1.10178334]
[1762528120129,8.89609751,3270.8,3270.7,4.523e-05]
[1762528120328,8.40042751,3270.8,3270.5,4.523e-05]
[1762528120530,11.53968,3270.7,3270.5,4.523e-05]
[1762528120722,11.034,3270.7,3270.1,3.2078]
[1762528120919,0.00223451,3270.8,3270.6,3.2078]
[1762528121529,0.00223451,3270.8,3270.6,3.70349]
[1762528121721,0.00458379,3271.1,3270.6,3.70349]
[1762528121920,3.479,3272.2,3271.0,5.02983]
[1762528122125,3.2078,3272.8,3271.8,3.2078]
[1762528122326,0.49549,3272.0,3271.8,3.2078]
[1762528122525,0.4955,3271.9,3271.8,3.2078]
[1762528122727,0.49553,3271.7,3271.6,3.65294347]
[1762528122923,0.49558,3271.4,3271.1,3.65294347]
[1762528123127,0.49559,3271.3,3271.1,3.65294347]
[1762528123329,0.49552,3271.8,3271.0,4.5342]
[1762528123528,0.49553,3271.7,3271.5,3.2078]
[1762528124831,0.49552,3271.8,3271.5,3.2078]
[1762528125028,0.49553,3271.7,3271.5,3.2078]
[1762528125227,0.00233847,3271.9,3271.5,3.2078]
[1762528125422,0.49553,3271.7,3271.5,3.2078]
[1762528125825,0.49551,3271.8,3271.5,3.2078]
[1762528126028,0.00458379,3272.1,3271.5,6.86074347]
[1762528126225,0.49553,3271.7,3271.5,6.86074347]
[1762528126539,0.4955,3271.9,3271.5,7.35629347]
[1762528126930,0.00214349,3271.9,3271.8,3.65294347]
[1762528127827,0.49551,3271.8,3271.7,3.65294347]
[1762528128030,0.49551,3271.8,3271.7,3.64154138]
[1762528128231,0.49554,3271.6,3271.5,3.2078]
[1762528128430,0.4956,3271.2,3271.1,3.2078]
[1762528128634,3.20994349,3271.9,3271.1,3.2078]
[1762528128841,10.187,3271.8,3271.5,3.2078]
[1762528129134,0.49553,3271.7,3271.6,2.63268875]
[1762528129330,0.49553,3271.7,3271.5,5.84048875]
[1762528129530,0.49553,3271.7,3271.6,2.63268875]
[1762528129735,0.00214349,3271.9,3271.7,0.49552]
[1762528130332,0.49541,3272.5,3272.0,1.3264]
[1762528130532,10.988,3273.0,3272.0,1.3264]
[1762528130533,10.988,3273.0,3272.4,3.2078]
[1762528130741,10.988,3273.0,3272.8,3.2078]
[1762528130942,3.2078,3274.0,3272.8,3.2078]
[1762528131238,0.49516,3274.2,3274.0,1.3264]
[1762528131540,3.2078,3275.0,3274.0,1.3264]
[1762528131835,0.05313468,3276.8,3275.0,1.3264]
[1762528132034,1.2981,3279.0,3276.3,2.10313995]
[1762528132228,0.4946,3277.8,3277.7,4.99e-06]
[1762528132432,1.54543295,3278.0,3276.5,2.62892494]
[1762528132636,10.987,3277.9,3276.5,0.00237332]
[1762528132938,0.49477,3276.7,3276.0,2.62892494]
[1762528133241,0.49486,3276.1,3276.0,2.63350111]
[1762528133441,0.49486,3276.1,3276.0,0.00457617]
[1762528134137,0.49486,3276.1,3276.0,0.0083507]
[1762528134546,11.47986,3276.1,3276.0,0.0083507]
[1762528135042,10.983,3276.1,3276.0,0.0083507]
[1762528135440,14.1908,3276.1,3276.0,0.0083507]
[1762528135942,10.982,3276.1,3276.0,3.2161507]
[1762528136235,0.49498,3275.3,3275.2,2.62892494]
[1762528136439,0.495,3275.2,3275.0,3.2078]
[1762528136941,10.981,3275.1,3275.0,3.2078]
[1762528137145,10.98,3275.1,3274.6,3.2078]
[1762528137440,0.49507,3274.8,3274.6,3.21101769]
[1762528137638,10.979,3274.8,3274.6,3.21101769]
[1762528137838,0.00241872,3275.1,3274.8,0.49505]
[1762528138038,0.00241872,3275.1,3275.0,3.2078]
[1762528138236,0.00457617,3275.2,3275.0,4.5342]
[1762528138440,0.49489,3276.0,3275.3,0.49497]
[1762528138744,0.49489,3276.0,3275.7,3.2078]
[1762528138745,10.978,3276.0,3275.7,3.2078]
[1762528139237,0.49489,3275.9,3275.7,3.2078]
[1762528139441,0.00348326,3276.0,3275.7,3.2078]
[1762528139635,0.4949,3275.9,3275.7,3.2078]
[1762528140044,0.00348326,3276.0,3275.7,3.2078]
[1762528140342,0.00295968,3276.2,3275.7,3.2078]
[1762528140743,0.00295968,3276.2,3276.1,3.2078]
[1762528141237,8.0,3276.1,3274.8,3.2078]
[1762528141433,8.0,3276.1,3271.0,1.4246]
[1762528141434,0.4951,3274.5,3274.4,3.2078]
[1762528141632,0.49516,3274.1,3274.0,3.2078]
[1762528141841,0.49516,3274.2,3274.0,1.4246]
[1762528142040,3.2078,3275.0,3274.0,1.4246]
[1762528142245,0.49512,3274.5,3274.3,3.2078]
[1762528142444,0.00457617,3274.7,3274.3,3.21100072]
[1762528142636,3.2078,3275.8,3274.7,0.49507]
[1762528142837,0.495,3275.2,3275.0,4.6324]
[1762528143244,0.495,3275.2,3275.0,1.4246]
[1762528143438,0.49507,3274.7,3274.5,2.09898857]
[1762528143649,0.4951,3274.5,3274.3,0.00320072]
[1762528143836,0.49528,3273.3,3273.2,2.09898857]
[1762528144036,0.49537,3272.7,3272.6,3.2078]
[1762528144238,0.49547,3272.1,3271.8,2.09898857]
[1762528144439,10.972,3272.1,3271.2,2.09898857]
[1762528144640,0.49549,3272.0,3271.3,1.36710197]
[1762528144940,0.00702225,3272.0,3271.4,2.97051054]
[1762528145138,0.00702225,3272.0,3271.5,4.07932197]
[1762528145343,0.49554,3271.7,3271.6,0.87152197]
[1762528145749,0.49554,3271.7,3271.6,1.97e-06]
[1762528145750,3.70334,3271.7,3271.6,1.97e-06]
[1762528145938,0.49557,3271.4,3271.3,2.99e-06]
[1762528146135,3.70337,3271.4,3271.3,2.99e-06]
[1762528146338,14.67437,3271.4,3271.3,2.99e-06]
[1762528146947,14.67437,3271.4,3271.3,0.00228259]
[1762528147139,3.2078,3271.4,3271.3,0.00228259]
[1762528147739,11.2078,3271.4,3271.3,0.00228259]
[1762528148044,14.1798,3271.4,3271.3,0.00228259]
[1762528148248,22.1798,3271.4,3271.3,0.00228259]
[1762528148439,0.49583,3269.8,3269.6,3.2078]
[1762528148746,9.88978,3270.1,3269.5,0.49586]
[1762528149044,0.49579,3270.0,3269.5,0.49585]
[1762528149253,3.2078,3270.8,3270.0,0.49578]
[1762528149550,0.00458344,3270.7,3270.1,0.00458344]
[1762528149749,3.2078,3270.4,3270.1,0.00458344]
[1762528149954,0.49574,3270.3,3270.1,0.00458344]
[1762528150244,3.2078,3270.4,3270.1,0.00458344]
[1762528150449,0.00458344,3270.7,3270.3,1.4246]
[1762528150851,0.00458344,3270.7,3270.1,0.00458344]
[1762528150852,0.49575,3270.2,3270.1,0.00458344]
[1762528151047,3.70355,3270.2,3270.1,0.00458344]
[1762528151260,3.2078,3270.2,3270.1,0.00458344]
[1762528151646,9.873,3270.6,3270.1,0.00458344]
[1762528151647,0.00458344,3270.7,3270.1,8.00458344]
[1762528151843,0.00458344,3270.7,3270.1,0.00458344]
[1762528151844,0.49574,3270.3,3270.1,0.00458344]
[1762528152054,3.70354,3270.3,3270.1,0.00458344]
[1762528152254,3.2078,3270.3,3270.1,0.00458344]